fUST/lending_fUST_20250615
["ID","MTS","AMOUNT","RATE_DAILY","PERIOD"]
[365892824,1749976243044,-500.0,0.00022973,2]
[365892825,1749976243054,-500.0,0.00022973,2]
[365892826,1749976243063,-500.0,0.00022973,2]
[365892827,1749976243072,-500.0,0.00022973,2]
[365892828,1749976243081,-500.0,0.00022973,2]
[365892829,1749976243091,-500.0,0.00022973,2]
[365892830,1749976243100,-500.0,0.00022973,2]
[365892831,1749976243109,-500.0,0.00022973,2]
[365892832,1749976243118,-158.66118947,0.00022986,2]
[365892833,1749976243129,-5600.94206452,0.0002299,2]
[365892834,1749976243138,-5989.46906902,0.00023,2]
[365892835,1749976243147,-827.1631375,0.00023,2]
[365892836,1749976243157,-6022.6412642,0.00023,3]
[365892837,1749976243166,-127618.16708313,0.00023,2]
[365892838,1749976243176,-45512.50278553,0.00023,20]
[365892839,1749976243186,-151.0,0.00023,6]
[365892840,1749976243195,-151.0,0.00023,7]
[365892841,1749976243205,-189.94184358,0.00023003,2]
[365892842,1749976243215,-434.3016927,0.00023004,2]
[365892843,1749976243224,-484.47434949,0.00023009,2]
[365892844,1749976243234,-528.37,0.00023013,4]
[365892845,1749976243244,-460.0,0.00023013,4]
[365892846,1749976243253,-613.83,0.00023013,4]
[365892847,1749976243262,-474.07,0.00023013,4]
[365892848,1749976243272,-479.87,0.00023013,2]
[365892849,1749976243281,-460.0,0.00023013,4]
[365892850,1749976243291,-3296.49,0.00023013,4]
[365892851,1749976243301,-460.0,0.00023013,4]
[365892852,1749976243313,-537.78,0.00023013,4]
[365892853,1749976243323,-703.97,0.00023013,4]
[365892854,1749976243332,-460.0,0.00023013,4]
[365892855,1749976243341,-1995.69,0.00023013,4]
[365892856,1749976243350,-2740.44,0.00023013,4]
[365892857,1749976243359,-1301.91,0.00023013,4]
[365892858,1749976243368,-571.14,0.00023013,4]
[365892859,1749976243377,-213.32089821,0.00023013,7]
[365892860,1749976243387,-12535.62630729,0.00023013,7]
[365892861,1749976243398,-2652.24,0.00023013,4]
[365892862,1749976243407,-1119.44,0.00023013,4]
[365892863,1749976243416,-1273.67,0.00023013,4]
[365892864,1749976243426,-460.0,0.00023013,4]
[365892865,1749976243436,-151.0,0.00023013,7]
[365892866,1749976243445,-1087.65,0.00023013,4]
[365892867,1749976243454,-460.0,0.00023013,4]
[365892868,1749976243464,-759.2,0.00023013,4]
[365892869,1749976243474,-460.0,0.00023013,4]
[365892870,1749976243484,-845.25843836,0.00023013,7]
[365892871,1749976243493,-468.21,0.00023013,4]
[365892872,1749976243502,-151.0,0.00023013,7]
[365892873,1749976243511,-460.0,0.00023013,4]
[365892874,1749976243521,-460.0,0.00023013,4]
[365892875,1749976243531,-151.0,0.00023013,7]
[365892876,1749976243541,-460.0,0.00023013,4]
[365892877,1749976243550,-460.0,0.00023013,4]
[365892878,1749976243560,-1420.29,0.00023013,4]
[365892879,1749976243569,-151.0,0.00023013,7]
[365892880,1749976243581,-460.0,0.00023013,4]
[365892881,1749976243590,-460.0,0.00023013,4]
[365892882,1749976243600,-460.0,0.00023013,4]
[365892883,1749976243610,-1466.86,0.00023013,4]
[365892884,1749976243619,-639.4,0.00023013,4]
[365892885,1749976243629,-460.0,0.00023013,4]
[365892886,1749976243638,-1807.58,0.00023013,4]
[365892887,1749976243648,-460.0,0.00023013,4]
[365892888,1749976243658,-460.0,0.00023013,4]
[365892889,1749976243667,-510.19,0.00023013,4]
[365892890,1749976243677,-216.6354311,0.00023013,4]
[365892891,1749976243686,-460.0,0.00023013,4]
[365892892,1749976243695,-199.716489,0.00023013,7]
[365892893,1749976243705,-199.716489,0.00023013,7]
[365892894,1749976243715,-1288.21,0.00023013,4]
[365892895,1749976243724,-772.11,0.00023013,4]
[365892896,1749976243734,-151.0,0.00023013,7]
[365892897,1749976243744,-1938.98,0.00023013,4]
[365892898,1749976243753,-460.0,0.00023013,4]
[365892899,1749976243763,-460.0,0.00023013,4]
[365892900,1749976243772,-629.57,0.00023013,4]
[365892901,1749976243782,-2926.28,0.00023013,4]
[365892902,1749976243791,-1531.55,0.00023013,4]
[365892903,1749976243801,-553.06,0.00023013,4]
[365892904,1749976243810,-160.22425139,0.00023014,2]
[365892905,1749976243820,-220.86455097,0.00023014,3]
[365892906,1749976243830,-500.0,0.00023022,2]
[365892907,1749976243839,-1151.20526447,0.00023033,2]
[365892908,1749976243849,-502.3111618,0.00023068,2]
[365892909,1749976243859,-1500.0,0.00023068,2]
[365892910,1749976243868,-4494.47,0.00023075,2]
[365892911,1749976243878,-500.0,0.00023095,2]
[365892912,1749976243887,-365.0707398,0.00023096,2]
[365892913,1749976243896,-151.0,0.00023129,7]
[365892914,1749976243906,-434.3016927,0.00023135,2]
[365892915,1749976243916,-194.06246095,0.00023139,2]
[365892916,1749976243926,-500.0,0.00023195,2]
[365892917,1749976243935,-500.0,0.000232,2]
[365892918,1749976243945,-500.0,0.00023237,2]
[365892919,1749976243955,-309.62,0.00023268,2]
[365892920,1749976243965,-500.0,0.00023284,2]
[365892921,1749976243976,-151.0,0.00023287,7]
[365892922,1749976243985,-151.0,0.00023287,7]
[365892923,1749976243997,-151.0,0.00023287,7]
[365892924,1749976244006,-151.0,0.00023287,7]
[365892925,1749976244017,-244.255183,0.00023287,7]
[365892926,1749976244027,-151.0,0.00023287,7]
[365892927,1749976244037,-151.0,0.00023287,7]
[365892928,1749976244046,-528.37,0.00023287,4]
[365892929,1749976244056,-460.0,0.00023287,4]
[365892930,1749976244065,-613.83,0.00023287,4]
[365892931,1749976244076,-151.0,0.00023287,7]
[365892932,1749976244085,-151.0,0.00023287,7]
[365892933,1749976244095,-151.0,0.00023287,7]
[365892934,1749976244104,-474.07,0.00023287,4]
[365892935,1749976244113,-151.0,0.00023287,7]
[365892936,1749976244123,-151.0,0.00023287,7]
[365892937,1749976244132,-151.0,0.00023287,7]
[365892938,1749976244142,-154.177358,0.00023287,7]
[365892939,1749976244150,-479.87,0.00023287,2]
[365892940,1749976244160,-190.91796,0.00023287,7]
[365892941,1749976244170,-151.0,0.00023287,7]
[365892942,1749976244180,-190.91796,0.00023287,7]
[365892943,1749976244190,-151.0,0.00023287,7]
[365892944,1749976244201,-152.933704,0.00023287,7]
[365892945,1749976244210,-152.933704,0.00023287,7]
[365892946,1749976244221,-151.0,0.00023287,7]
[365892947,1749976244231,-460.0,0.00023287,4]
[365892948,1749976244241,-3296.49,0.00023287,4]
[365892949,1749976244250,-460.0,0.00023287,4]
[365892950,1749976244259,-537.78,0.00023287,4]
[365892951,1749976244268,-151.0,0.00023287,7]
[365892952,1749976244277,-703.97,0.00023287,4]
[365892953,1749976244288,-460.0,0.00023287,4]
[365892954,1749976244297,-1995.69,0.00023287,4]
[365892955,1749976244310,-2740.44,0.00023287,4]
[365892956,1749976244319,-1301.91,0.00023287,4]
[365892957,1749976244329,-571.14,0.00023287,4]
[365892958,1749976244338,-2652.24,0.00023287,4]
[365892959,1749976244348,-151.0,0.00023287,7]
[365892960,1749976244358,-1119.44,0.00023287,4]
[365892961,1749976244367,-1273.67,0.00023287,4]
[365892962,1749976244377,-460.0,0.00023287,4]
[365892963,1749976244390,-1087.65,0.00023287,4]
[365892964,1749976244399,-460.0,0.00023287,4]
[365892965,1749976244409,-759.2,0.00023287,4]
[365892966,1749976244418,-460.0,0.00023287,4]
[365892967,1749976244428,-151.0,0.00023287,7]
[365892968,1749976244437,-468.21,0.00023287,4]
[365892969,1749976244447,-460.0,0.00023287,4]
[365892970,1749976244456,-151.0,0.00023287,7]
[365892971,1749976244466,-460.0,0.00023287,4]
[365892972,1749976244476,-460.0,0.00023287,4]
[365892973,1749976244485,-460.0,0.00023287,4]
[365892974,1749976244494,-1420.29,0.00023287,4]
[365892975,1749976244504,-460.0,0.00023287,4]
[365892976,1749976244513,-509.763559,0.00023287,4]
[365892977,1749976244523,-460.0,0.00023287,4]
[365892978,1749976244533,-1466.86,0.00023287,4]
[365892979,1749976244543,-639.4,0.00023287,4]
[365892980,1749976244553,-460.0,0.00023287,4]
[365892981,1749976244562,-1807.58,0.00023287,4]
[365892982,1749976244572,-460.0,0.00023287,4]
[365892983,1749976244581,-460.0,0.00023287,4]
[365892984,1749976244590,-510.19,0.00023287,4]
[365892985,1749976244599,-460.0,0.00023287,4]
[365892986,1749976244609,-1288.21,0.00023287,4]
[365892987,1749976244618,-772.11,0.00023287,4]
[365892988,1749976244627,-1938.98,0.00023287,4]
[365892989,1749976244637,-460.0,0.00023287,4]
[365892990,1749976244646,-460.0,0.00023287,4]
[365892991,1749976244655,-629.57,0.00023287,4]
[365892992,1749976244665,-2926.28,0.00023287,4]
[365892993,1749976244674,-1531.55,0.00023287,4]
[365892994,1749976244684,-553.06,0.00023287,4]
[365892995,1749976244693,-151.0,0.00023287,7]
[365892996,1749976244703,-215.0738,0.0002329,2]
[365892997,1749976244712,-2853.88698725,0.00023312,2]
[365892998,1749976244723,-1376.770671,0.00023324,3]
[365892999,1749976244732,-500.0,0.00023325,2]
[365893000,1749976244741,-500.0,0.00023331,2]
[365893001,1749976244751,-500.0,0.00023332,2]
[365893002,1749976244760,-434.3016927,0.00023348,2]
[365893003,1749976244769,-2775.87413851,0.00023359,2]
[365893004,1749976244778,-500.0,0.00023399,2]
[365893005,1749976244787,-500.0,0.00023416,2]
[365893006,1749976244796,-1000.0,0.0002343,2]
[365893007,1749976244805,-478.202379,0.0002343,2]
[365893008,1749976244815,-151.0,0.0002343,7]
[365893009,1749976244824,-478.202379,0.0002343,2]
[365893010,1749976244833,-151.0,0.0002343,7]
[365893011,1749976244843,-181.175563,0.0002343,7]
[365893012,1749976244852,-172.956697,0.0002343,7]
[365893013,1749976244861,-172.956697,0.0002343,7]
[365893014,1749976244870,-151.0,0.0002343,7]
[365893015,1749976244880,-151.0,0.00023479,7]
[365893016,1749976244889,-156.233307,0.00023479,7]
[365893017,1749976244898,-151.0,0.00023479,7]
[365893018,1749976244907,-30000.0,0.000235,2]
[365893019,1749976244917,-1424.41,0.000235,7]
[365893020,1749976244926,-151.0,0.000235,7]
[365893021,1749976244936,-199.716489,0.000235,7]
[365893022,1749976244945,-199.716489,0.000235,7]
[365893023,1749976244954,-151.0,0.000235,7]
[365893024,1749976244964,-151.0,0.0002351,7]
[365893025,1749976244973,-2160.0,0.00023516,2]
[365893026,1749976244982,-653.0,0.00023516,2]
[365893027,1749976244992,-405.0,0.00023516,2]
[365893028,1749976245001,-406.0,0.00023516,2]
[365893029,1749976245010,-500.0,0.00023521,2]
[365893030,1749976245019,-500.0,0.00023521,2]
[365893031,1749976245028,-1000.0,0.00023521,2]
[365893032,1749976245037,-1000.0,0.00023521,2]
[365893033,1749976245046,-1000.0,0.00023521,2]
[365893034,1749976245055,-500.0,0.00023521,2]
[365893035,1749976245063,-1200.0,0.00023521,2]
[365893036,1749976245074,-1128.81958972,0.00023521,2]
[365893037,1749976245084,-1000.0,0.00023521,2]
[365893038,1749976245093,-1007.55460346,0.00023521,2]
[365893039,1749976245103,-1000.0,0.00023521,2]
[365893040,1749976245114,-1000.0,0.00023521,2]
[365893041,1749976245123,-1000.0,0.00023521,2]
[365893042,1749976245132,-90319.21364689,0.00023546,2]
[365893043,1749976245142,-151.0,0.00023546,7]
[365893044,1749976245151,-151.0,0.00023546,7]
[365893045,1749976245160,-151.0,0.00023546,7]
[365893046,1749976245171,-151.0,0.00023555,7]
[365893047,1749976245181,-151.0,0.00023555,7]
[365893048,1749976245190,-249.469447,0.00023555,7]
[365893049,1749976245199,-12150.41,0.0002356,5]
[365893050,1749976245208,-153.681451,0.00023561,7]
[365893052,1749976245218,-151.0,0.00023561,7]
[365893053,1749976245227,-200.0,0.00023561,4]
[365893054,1749976245236,-200.0,0.00023561,4]
[365893055,1749976245245,-200.0,0.00023561,4]
[365893056,1749976245255,-239.3730385,0.00023561,4]
[365893057,1749976245264,-528.37,0.00023561,4]
[365893058,1749976245273,-460.0,0.00023561,4]
[365893059,1749976245282,-613.83,0.00023561,4]
[365893060,1749976245292,-474.07,0.00023561,4]
[365893061,1749976245303,-479.87,0.00023561,2]
[365893062,1749976245316,-460.0,0.00023561,4]
[365893063,1749976245325,-3296.49,0.00023561,4]
[365893064,1749976245335,-460.0,0.00023561,4]
[365893065,1749976245344,-537.78,0.00023561,4]
[365893066,1749976245354,-703.97,0.00023561,4]
[365893067,1749976245364,-460.0,0.00023561,4]
[365893068,1749976245373,-1995.69,0.00023561,4]
[365893070,1749976245382,-2740.44,0.00023561,4]
[365893072,1749976245391,-1301.91,0.00023561,4]
[365893074,1749976245401,-571.14,0.00023561,4]
[365893076,1749976245410,-2652.24,0.00023561,4]
[365893078,1749976245419,-1119.44,0.00023561,4]
[365893080,1749976245429,-1273.67,0.00023561,4]
[365893082,1749976245438,-460.0,0.00023561,4]
[365893084,1749976245447,-1087.65,0.00023561,4]
[365893086,1749976245456,-460.0,0.00023561,4]
[365893088,1749976245466,-759.2,0.00023561,4]
[365893090,1749976245475,-460.0,0.00023561,4]
[365893092,1749976245484,-468.21,0.00023561,4]
[365893094,1749976245493,-460.0,0.00023561,4]
[365893096,1749976245502,-460.0,0.00023561,4]
[365893098,1749976245512,-184.413066,0.00023561,7]
[365893100,1749976245522,-460.0,0.00023561,4]
[365893103,1749976245532,-460.0,0.00023561,4]
[365893105,1749976245541,-1420.29,0.00023561,4]
[365893107,1749976245551,-460.0,0.00023561,4]
[365893109,1749976245560,-460.0,0.00023561,4]
[365893111,1749976245569,-1466.86,0.00023561,4]
[365893113,1749976245580,-639.4,0.00023561,4]
[365893114,1749976245589,-460.0,0.00023561,4]
[365893116,1749976245598,-1807.58,0.00023561,4]
[365893119,1749976245608,-460.0,0.00023561,4]
[365893121,1749976245618,-510.19,0.00023561,4]
[365893123,1749976245628,-460.0,0.00023561,4]
[365893125,1749976245637,-199.716489,0.00023561,7]
[365893127,1749976245646,-199.716489,0.00023561,7]
[365893129,1749976245657,-1288.21,0.00023561,4]
[365893131,1749976245666,-772.11,0.00023561,4]
[365893133,1749976245675,-151.0,0.00023561,7]
[365893135,1749976245684,-1938.98,0.00023561,4]
[365893137,1749976245693,-460.0,0.00023561,4]
[365893139,1749976245703,-460.0,0.00023561,4]
[365893141,1749976245712,-629.57,0.00023561,4]
[365893143,1749976245721,-2926.28,0.00023561,4]
[365893145,1749976245730,-1531.55,0.00023561,4]
[365893147,1749976245739,-553.06,0.00023561,4]
[365893149,1749976245748,-500.0,0.00023573,2]
[365893151,1749976245757,-500.0,0.00023573,2]
[365893153,1749976245766,-500.0,0.00023573,2]
[365893155,1749976245775,-500.0,0.0002358,9]
[365893157,1749976245785,-502.97430169,0.0002358,9]
[365893159,1749976245794,-500.0,0.0002358,9]
[365893161,1749976245803,-500.0,0.0002358,9]
[365893163,1749976245812,-151.0,0.000236,5]
[365893165,1749976245822,-2000.0,0.00023616,2]
[365893167,1749976245831,-168.0,0.00023632,2]
[365893180,1749976245841,-189.94184358,0.00023651,2]
[365893183,1749976245958,-500.0,0.0002367,2]
[365893185,1749976245967,-244.10651232,0.00023687,3]
[365893187,1749976245977,-41310.55945846,0.00023687,2]
[365893189,1749976245987,-2469.89,0.000237,2]
[365893191,1749976245996,-546.44,0.000237,7]
[365893193,1749976246005,-639.0,0.000237,2]
[365893195,1749976246014,-500.0,0.00023715,2]
[365893197,1749976246024,-168.0,0.00023727,2]
[365893199,1749976246033,-151.0,0.00023728,7]
[365893200,1749976246043,-1001.82273507,0.00023748,2]
[365893201,1749976246052,-1000.0,0.00023753,7]
[365893202,1749976246061,-1000.0,0.00023753,7]
[365893203,1749976246070,-1000.0,0.00023753,7]
[365893204,1749976246080,-1000.0,0.00023753,7]
[365893206,1749976246089,-1000.0,0.00023753,7]
[365893208,1749976246098,-1000.0,0.00023753,7]
[365893210,1749976246107,-1000.0,0.00023753,7]
[365893212,1749976246116,-1000.0,0.00023753,7]
[365893214,1749976246126,-1000.0,0.00023753,7]
[365893215,1749976246134,-1000.0,0.00023753,7]
[365893216,1749976246143,-1000.0,0.00023753,7]
[365893217,1749976246152,-1000.0,0.00023753,7]
[365893218,1749976246161,-1000.0,0.00023753,7]
[365893219,1749976246171,-1000.0,0.00023753,7]
[365893220,1749976246180,-924.60234557,0.00023753,7]
[365893221,1749976246190,-151.0,0.00023753,7]
[365893222,1749976246198,-151.0,0.00023753,7]
[365893223,1749976246208,-151.0,0.00023753,7]
[365893224,1749976246217,-151.0,0.00023753,7]
[365893225,1749976246227,-151.0,0.00023753,7]
[365893227,1749976246236,-151.0,0.00023753,7]
[365893229,1749976246245,-190.91796,0.00023753,7]
[365893230,1749976246254,-151.0,0.00023753,7]
[365893231,1749976246263,-190.91796,0.00023753,7]
[365893232,1749976246272,-152.933704,0.00023753,7]
[365893233,1749976246281,-152.933704,0.00023753,7]
[365893234,1749976246290,-151.0,0.00023753,7]
[365893235,1749976246299,-43234.55653057,0.0002376,2]
[365893236,1749976246312,-1753.04995578,0.0002376,2]
[365893237,1749976246321,-151.0,0.0002376,7]
[365893238,1749976246331,-151.0,0.0002376,7]
[365893239,1749976246340,-151.0,0.0002376,7]
[365893240,1749976246350,-249.660502,0.0002376,7]
[365893241,1749976246359,-478.202379,0.0002376,2]
[365893242,1749976246368,-151.0,0.0002376,7]
[365893243,1749976246378,-478.202379,0.0002376,2]
[365893244,1749976246388,-151.0,0.0002376,7]
[365893245,1749976246397,-172.956697,0.0002376,7]
[365893246,1749976246406,-172.956697,0.0002376,7]
[365893247,1749976246415,-151.0,0.0002376,7]
[365893248,1749976246425,-151.0,0.0002376,7]
[365893249,1749976246434,-151.0,0.0002376,7]
[365893250,1749976246443,-150.0,0.00023773,2]
[365893251,1749976246452,-151.0,0.00023773,7]
[365893252,1749976246462,-151.828374,0.0002378,7]
[365893253,1749976246471,-999.999999,0.0002378,2]
[365893254,1749976246481,-19848.32484254,0.0002378,5]
[365893255,1749976246491,-56351.96145986,0.00023788,2]
[365893256,1749976246500,-500.0,0.00023789,2]
[365893257,1749976246510,-500.0,0.00023792,2]
[365893258,1749976246519,-9852.02360039,0.000238,2]
[365893259,1749976246529,-21380.1816697,0.000238,2]
[365893260,1749976246539,-12253.08110124,0.000238,3]
[365893261,1749976246549,-75969.41,0.000238,7]
[365893262,1749976246558,-3711.68091189,0.000238,2]
[365893263,1749976246567,-160.0,0.000238,3]
[365893264,1749976246578,-160.0,0.000238,3]
[365893266,1749976246587,-1050.91110605,0.000238,2]
[365893269,1749976246597,-151.0,0.000238,7]
[365893271,1749976246607,-151.0,0.000238,7]
[365893273,1749976246616,-156.0,0.000238,2]
[365893275,1749976246625,-151.0,0.000238,6]
[365893277,1749976246635,-500.0,0.000238,2]
[365893279,1749976246644,-596.53017069,0.000238,2]
[365893281,1749976246653,-151.0,0.000238,7]
[365893283,1749976246662,-151.0,0.000238,7]
[365893284,1749976246671,-151.0,0.000238,7]
[365893287,1749976246681,-151.0,0.000238,7]
[365893289,1749976246690,-152.72351,0.000238,7]
[365893291,1749976246699,-190.91796,0.000238,7]
[365893292,1749976246709,-151.0,0.000238,7]
[365893294,1749976246718,-190.91796,0.000238,7]
[365893296,1749976246727,-160.0,0.000238,3]
[365893298,1749976246737,-153.134164,0.000238,7]
[365893300,1749976246746,-152.933704,0.000238,7]
[365893302,1749976246756,-152.933704,0.000238,7]
[365893304,1749976246765,-151.0,0.000238,7]
[365893306,1749976246774,-160.0,0.000238,3]
[365893308,1749976246784,-835.55256958,0.000238,3]
[365893310,1749976246793,-213.32089821,0.000238,3]
[365893312,1749976246802,-12535.62630729,0.000238,3]
[365893314,1749976246811,-424.47602138,0.000238,3]
[365893316,1749976246821,-1018.7575,0.000238,2]
[365893319,1749976246831,-845.25843836,0.000238,3]
[365893321,1749976246841,-151.0,0.000238,7]
[365893323,1749976246850,-298809.67201747,0.000238,2]
[365893324,1749976246860,-199.716489,0.000238,7]
[365893327,1749976246869,-199.716489,0.000238,7]
[365893329,1749976246878,-229.86375354,0.000238,3]
[365893330,1749976246887,-151.0,0.000238,7]
[365893333,1749976246897,-500.0,0.00023815,2]
[365893335,1749976246906,-151.024489,0.00023835,7]
[365893337,1749976246916,-208.783582,0.00023835,7]
[365893339,1749976246925,-151.0,0.00023835,7]
[365893341,1749976246934,-528.37,0.00023835,4]
[365893343,1749976246943,-460.0,0.00023835,4]
[365893344,1749976246952,-613.83,0.00023835,4]
[365893346,1749976246961,-249.660502,0.00023835,7]
[365893349,1749976246971,-474.07,0.00023835,4]
[365893351,1749976246980,-478.202379,0.00023835,2]
[365893352,1749976246990,-151.0,0.00023835,7]
[365893355,1749976246999,-478.202379,0.00023835,2]
[365893357,1749976247008,-151.0,0.00023835,7]
[365893359,1749976247017,-479.87,0.00023835,2]
[365893361,1749976247027,-172.956697,0.00023835,7]
[365893363,1749976247036,-172.956697,0.00023835,7]
[365893365,1749976247045,-151.0,0.00023835,7]
[365893367,1749976247054,-460.0,0.00023835,4]
[365893369,1749976247064,-3296.49,0.00023835,4]
[365893371,1749976247075,-460.0,0.00023835,4]
[365893373,1749976247085,-537.78,0.00023835,4]
[365893375,1749976247094,-189.105303,0.00023835,7]
[365893377,1749976247103,-703.97,0.00023835,4]
[365893379,1749976247112,-460.0,0.00023835,4]
[365893381,1749976247124,-1995.69,0.00023835,4]
[365893383,1749976247133,-2740.44,0.00023835,4]
[365893385,1749976247142,-1301.91,0.00023835,4]
[365893387,1749976247151,-571.14,0.00023835,4]
[365893389,1749976247160,-2652.24,0.00023835,4]
[365893391,1749976247169,-1119.44,0.00023835,4]
[365893393,1749976247178,-1273.67,0.00023835,4]
[365893395,1749976247187,-460.0,0.00023835,4]
[365893397,1749976247197,-280.633622,0.00023835,7]
[365893399,1749976247207,-1087.65,0.00023835,4]
[365893401,1749976247216,-460.0,0.00023835,4]
[365893403,1749976247225,-759.2,0.00023835,4]
[365893405,1749976247234,-460.0,0.00023835,4]
[365893407,1749976247243,-151.0,0.00023835,7]
[365893409,1749976247252,-468.21,0.00023835,4]
[365893411,1749976247261,-151.0,0.00023835,7]
[365893412,1749976247270,-460.0,0.00023835,4]
[365893414,1749976247280,-460.0,0.00023835,4]
[365893417,1749976247289,-460.0,0.00023835,4]
[365893419,1749976247299,-460.0,0.00023835,4]
[365893421,1749976247311,-1420.29,0.00023835,4]
[365893423,1749976247320,-460.0,0.00023835,4]
[365893425,1749976247329,-460.0,0.00023835,4]
[365893427,1749976247339,-1466.86,0.00023835,4]
[365893429,1749976247348,-639.4,0.00023835,4]
[365893431,1749976247358,-460.0,0.00023835,4]
[365893433,1749976247367,-1807.58,0.00023835,4]
[365893435,1749976247376,-460.0,0.00023835,4]
[365893437,1749976247385,-510.19,0.00023835,4]
[365893439,1749976247395,-460.0,0.00023835,4]
[365893441,1749976247404,-1288.21,0.00023835,4]
[365893443,1749976247413,-772.11,0.00023835,4]
[365893445,1749976247423,-1938.98,0.00023835,4]
[365893446,1749976247432,-460.0,0.00023835,4]
[365893448,1749976247442,-460.0,0.00023835,4]
[365893450,1749976247451,-2926.28,0.00023835,4]
[365893452,1749976247460,-629.57,0.00023835,4]
[365893455,1749976247470,-1531.55,0.00023835,4]
[365893457,1749976247480,-553.06,0.00023835,4]
[365893459,1749976247489,-160.0,0.00023837,5]
[365893461,1749976247498,-4480.9320235,0.0002389,2]
[365893463,1749976247508,-168.0,0.00023896,2]
[365893465,1749976247517,-500.0,0.000239,2]
[365893467,1749976247527,-1018.7575,0.000239,2]
[365893469,1749976247535,-5358.1001289,0.000239,2]
[365893471,1749976247545,-976.80005035,0.000239,2]
[365893473,1749976247555,-500.0,0.00023921,2]
[365893475,1749976247565,-500.0,0.00023921,2]
[365893477,1749976247575,-500.0,0.00023921,2]
[365893479,1749976247584,-500.0,0.00023921,2]
[365893481,1749976247594,-168.0,0.00023923,2]
[365893483,1749976247603,-2200.0,0.00023927,2]
[365893485,1749976247613,-500.0,0.00023953,2]
[365893487,1749976247622,-168.0,0.00023966,2]
[365893489,1749976247631,-500.0,0.00023973,2]
[365893490,1749976247640,-500.0,0.00023973,2]
[365893492,1749976247649,-158.50228441,0.00023973,2]
[365893494,1749976247659,-500.0,0.00023973,2]
[365893496,1749976247668,-211.06366694,0.00023978,2]
[365893498,1749976247678,-500.0,0.00023992,2]
[365893500,1749976247687,-207.93432221,0.00023999,2]
[365893502,1749976247697,-97342.73415242,0.00024,2]
[365893519,1749976247832,-2009.82,0.00023013,4]
[365893521,1749976247842,-161830.84044912,0.00024,2]
[365893523,1749976247853,-388.13637237,0.00024,2]
[365893526,1749976247952,-460.0,0.00022465,4]
[365893527,1749976247962,-460.0,0.00022739,4]
[365893528,1749976247971,-833.04995578,0.00022913,2]
[365893529,1749976247982,-368.0747991,0.00022913,2]
[365893530,1749976247991,-431.9252009,0.00023013,4]
[365893531,1749976248002,-28.0747991,0.00023013,4]
[365893532,1749976248012,-2009.82,0.00023287,4]
[365893533,1749976248021,-460.0,0.00023287,4]
[365893534,1749976248030,-2009.82,0.00023561,4]
[365893535,1749976248039,-460.0,0.00023561,4]
[365893536,1749976248049,-467.20031218,0.00023835,4]
[365893537,1749976248061,-1542.61968782,0.00023835,4]
[365893538,1749976248070,-460.0,0.00023835,4]
[365893539,1749976248080,-23235.7195669,0.00024,2]
[365893846,1749976258677,-500.0,0.00020509,2]
[365893847,1749976259898,-1740.84189381,0.000219,6]
[365893848,1749976259921,-86.11810619,0.00021917,4]